Departmental family,Entity,Date Paid,Expense type,Expense Area,Supplier,Transaction Number,Amount,Description,Supplier Type,Expenditure Type
UK Statistics Authority,Office for National Statistics,03-Apr-18,Surveys,National Accounts and Economic Statistics,Kantar Public,79547,"388,657.80", Information Management Services,SME,Programme
UK Statistics Authority,Office for National Statistics,03-Apr-18,Contractors,Digital Services and Technology,E Synergy Solutions,79549,"27,468.00", Information Management Services ,SME,Programme
UK Statistics Authority,Office for National Statistics,03-Apr-18,Contractors,Digital Services and Technology,E Synergy Solutions,79549,"2,070.00", Information Management Services ,SME,Programme
UK Statistics Authority,Office for National Statistics,03-Apr-18,IT Contractual Services,Digital Services and Technology,E Synergy Solutions,79549,"26,232.00", Information Management Services ,SME,Programme
UK Statistics Authority,Office for National Statistics,03-Apr-18,Consultancy,Digital Services and Technology,Swirrl IT Ltd,79550,"87,711.60", Statistical Services,SME,Programme
UK Statistics Authority,Office for National Statistics,03-Apr-18,IT Contractual Services,Digital Services and Technology,Swirrl IT Ltd,79550,"225,759.60", Statistical Services,SME,Programme
UK Statistics Authority,Office for National Statistics,03-Apr-18,Non-IT Contractual Payments,Public Population and Policy - Operations,NatCen Social Research,79551,"232,027.63", Statistical Services,Large,Programme
UK Statistics Authority,Office for National Statistics,03-Apr-18,Vouchers,Public Population and Policy - Operations,Park Retail Ltd,79553,"116,002.67", Social Surveys Incentive Vouchers,Large,Programme
UK Statistics Authority,Office for National Statistics,03-Apr-18,Major Works Over 25K,People and Business Services,Vinci Construction UK Limited,79554,"28,518.00", Titchfield Major Works ,Large,Programme
UK Statistics Authority,Office for National Statistics,03-Apr-18,IT Contractual Services,Digital Services and Technology,SCC,79559,"254,292.80", Information Management Services,Large,Programme
UK Statistics Authority,Office for National Statistics,03-Apr-18,ICT Outsourcing and Maintenance/Support,Digital Services and Technology,BT Global Services,79560,"193,738.99", Information Management Services,Large,Programme
UK Statistics Authority,Office for National Statistics,03-Apr-18,Travel and Subsistence,"Finance, Audit and Business Development",Redfern Travel,79564,"63,735.46", Travel and Accommodation Booking Service ,SME,Programme
UK Statistics Authority,Office for National Statistics,03-Apr-18,Contractors,Digital Services and Technology,Medley Business Solutions Ltd,79567,482.71, Information Management Services,Large,Programme
UK Statistics Authority,Office for National Statistics,03-Apr-18,IT Contractual Services,Digital Services and Technology,Medley Business Solutions Ltd,79567,"12,830.40", Information Management Services,Large,Programme
UK Statistics Authority,Office for National Statistics,03-Apr-18,Non-IT Contractual Payments,Digital Services and Technology,Medley Business Solutions Ltd,79567,409.06, Information Management Services,Large,Programme
UK Statistics Authority,Office for National Statistics,03-Apr-18,Non-IT Contractual Payments,Digital Services and Technology,Medley Business Solutions Ltd,79567,"15,206.40", Information Management Services,Large,Programme
UK Statistics Authority,Office for National Statistics,03-Apr-18,IT Contractual Services,Digital Services and Technology,Methods Digital Ltd,79568,"61,650.00", Information Management Services,Large,Programme
UK Statistics Authority,Office for National Statistics,03-Apr-18,IT Contractual Services,Digital Services and Technology,Methods Digital Ltd,79568,"53,100.00", Information Management Services,Large,Programme
UK Statistics Authority,Office for National Statistics,03-Apr-18,IT Contractual Services,Digital Services and Technology,Methods Digital Ltd,79568,"24,592.50", Information Management Services,Large,Programme
UK Statistics Authority,Office for National Statistics,03-Apr-18,IT Contractual Services,Digital Services and Technology,Methods Digital Ltd,79568,"42,300.00", Information Management Services,Large,Programme
UK Statistics Authority,Office for National Statistics,03-Apr-18,IT Contractual Services,Digital Services and Technology,Methods Digital Ltd,79568,"59,280.00", Information Management Services,Large,Programme
UK Statistics Authority,Office for National Statistics,03-Apr-18,Contractors,Digital Services and Technology,LA International,79570,"12,340.01", Information Management Services,SME,Programme
UK Statistics Authority,Office for National Statistics,03-Apr-18,Contractors,Digital Services and Technology,LA International,79570,"17,104.98", Information Management Services,SME,Programme
UK Statistics Authority,Office for National Statistics,03-Apr-18,Contractors,Digital Services and Technology,LA International,79570,"9,227.16", Information Management Services,SME,Programme
UK Statistics Authority,Office for National Statistics,03-Apr-18,Contractors,"Methods, Data and Research",LA International,79570,"3,524.28", Information Management Services,SME,Programme
UK Statistics Authority,Office for National Statistics,03-Apr-18,Contractors,National Accounts and Economic Statistics,LA International,79570,"19,223.28", Information Management Services,SME,Programme
UK Statistics Authority,Office for National Statistics,03-Apr-18,ICT Outsourcing and Maintenance/Support,Digital Services and Technology,LA International,79570,156.67, Information Management Services,SME,Programme
UK Statistics Authority,Office for National Statistics,03-Apr-18,IT Contractual Services,Digital Services and Technology,LA International,79570,"14,096.88", Information Management Services,SME,Programme
UK Statistics Authority,Office for National Statistics,03-Apr-18,Consultancy,Public Population and Policy - Transformation,Deloitte,79572,"101,820.00", Census Information Management Services,SME,Programme
UK Statistics Authority,Office for National Statistics,03-Apr-18,Capital Major Works > 25K,People and Business Services,Paramount Office Interiors Ltd,79573,"209,168.40", Major Works Newport,SME,Programme
UK Statistics Authority,Office for National Statistics,03-Apr-18,Capital Major Works > 25K,People and Business Services,Paramount Office Interiors Ltd,79573,52.58, Major Works Titchfield,SME,Programme
UK Statistics Authority,Office for National Statistics,03-Apr-18,Capital Major Works > 25K,People and Business Services,Paramount Office Interiors Ltd,79573,"42,473.21", Major Works Drummond Gate,SME,Programme
UK Statistics Authority,Office for National Statistics,03-Apr-18,Major Works Over 25K,People and Business Services,Paramount Office Interiors Ltd,79573,"29,214.77", Major Works Titchfield,SME,Programme
UK Statistics Authority,Office for National Statistics,03-Apr-18,Major Works Over 25K,People and Business Services,Paramount Office Interiors Ltd,79573,"168,945.09", Major Works Newport,SME,Programme
UK Statistics Authority,Office for National Statistics,03-Apr-18,Major Works Over 25K,People and Business Services,Paramount Office Interiors Ltd,79573,"465,193.41", Major Works Drummond Gate,SME,Programme
UK Statistics Authority,Office for National Statistics,03-Apr-18,Contractors,Digital Services and Technology,Parity Resources Limited,79577,228.96, Information Management Services,Large,Programme
UK Statistics Authority,Office for National Statistics,03-Apr-18,Contractors,Digital Services and Technology,Parity Resources Limited,79577,"10,252.80", Information Management Services,Large,Programme
UK Statistics Authority,Office for National Statistics,03-Apr-18,Contractors,Digital Services and Technology,Parity Resources Limited,79577,"29,413.75", Information Management Services,Large,Programme
UK Statistics Authority,Office for National Statistics,03-Apr-18,Contractors,"Methods, Data and Research",Parity Resources Limited,79577,581.58, Information Management Services,Large,Programme
UK Statistics Authority,Office for National Statistics,03-Apr-18,Short-Term Contract and Agency Staff,People and Business Services,Parity Resources Limited,79577,"2,142.07", Information Management Services,Large,Programme
UK Statistics Authority,Office for National Statistics,03-Apr-18,Short-Term Contract and Agency Staff,Policy and Communication,Parity Resources Limited,79577,"2,822.26", Information Management Services,Large,Programme
UK Statistics Authority,Office for National Statistics,03-Apr-18,Business Rates,People and Business Services,Christchurch Borough Council,79583,"156,527.50", Christchurch Rates,Large,Programme
UK Statistics Authority,Office for National Statistics,04-Apr-18,Business Rates,People and Business Services,Newport City Council,79587,"986,880.00", Newport Rates,Large,Programme
UK Statistics Authority,Office for National Statistics,04-Apr-18,IT Management and Change,Digital Services and Technology,Crown Hosting Data Centres Limited,79589,"100,466.28", Cloud Services,SME,Programme
UK Statistics Authority,Office for National Statistics,04-Apr-18,ICT Outsourcing and Maintenance/Support,Public Population and Policy - Operations,Totalmobile Ltd,79595,"143,186.40", Field Management Tool Services,SME,Programme
UK Statistics Authority,Office for National Statistics,05-Apr-18,ICT Outsourcing and Maintenance/Support,Digital Services and Technology,Crown Hosting Data Centres Limited,79791,"13,945.62", Cloud Services,SME,Programme
UK Statistics Authority,Office for National Statistics,05-Apr-18,ICT Outsourcing and Maintenance/Support,Digital Services and Technology,Crown Hosting Data Centres Limited,79791,"10,143.60", Cloud Services,SME,Programme
UK Statistics Authority,Office for National Statistics,05-Apr-18,ICT Outsourcing and Maintenance/Support,Digital Services and Technology,Crown Hosting Data Centres Limited,79791,"16,119.20", Cloud Services,SME,Programme
UK Statistics Authority,Office for National Statistics,05-Apr-18,IT Management and Change,Digital Services and Technology,Crown Hosting Data Centres Limited,79791,"107,379.31", Cloud Services,SME,Programme
UK Statistics Authority,Office for National Statistics,05-Apr-18,Travel and Subsistence,"Finance, Audit and Business Development",Redfern Travel,79800,"36,341.28", Travel and Accommodation Booking Service ,SME,Programme
UK Statistics Authority,Office for National Statistics,05-Apr-18,ICT Outsourcing and Maintenance/Support,"Finance, Audit and Business Development",Altius Consulting Ltd,79816,"32,518.03", Information Management Services,SME,Programme
UK Statistics Authority,Office for National Statistics,05-Apr-18,Non-IT Contractual Payments,Policy and Communication,Four Communications Group Limited,79820,"127,747.20", Information Management Services,SME,Programme
UK Statistics Authority,Office for National Statistics,06-Apr-18,Consultancy,Public Population and Policy - Operations,Certes Computing Ltd,79839,"12,740.64", Information Management Services,SME,Programme
UK Statistics Authority,Office for National Statistics,06-Apr-18,Contractors,Public Population and Policy - Transformation,Certes Computing Ltd,79839,"15,599.72", Information Management Services,SME,Programme
UK Statistics Authority,Office for National Statistics,06-Apr-18,Contractors,Digital Services and Technology,LA International,79840,"18,310.12", Information Management Services,SME,Programme
UK Statistics Authority,Office for National Statistics,06-Apr-18,Contractors,"Finance, Audit and Business Development",LA International,79840,"3,036.12", Information Management Services,SME,Programme
UK Statistics Authority,Office for National Statistics,06-Apr-18,Contractors,"Methods, Data and Research",LA International,79840,"3,524.28", Information Management Services,SME,Programme
UK Statistics Authority,Office for National Statistics,06-Apr-18,Contractors,National Accounts and Economic Statistics,LA International,79840,"4,805.82", Information Management Services,SME,Programme
UK Statistics Authority,Office for National Statistics,06-Apr-18,Childcare Services,"Finance, Audit and Business Development",Computershare Voucher Services,79848,"42,636.83", Childcare Vouchers ,Large,Programme
UK Statistics Authority,Office for National Statistics,06-Apr-18,Contractors,Digital Services and Technology,E Synergy Solutions,79860,"10,350.00", Information Management Services ,SME,Programme
UK Statistics Authority,Office for National Statistics,06-Apr-18,IT Contractual Services,Digital Services and Technology,E Synergy Solutions,79860,"17,940.00", Information Management Services ,SME,Programme
UK Statistics Authority,Office for National Statistics,09-Apr-18,Surveys,National Accounts and Economic Statistics,Kantar Public,80168,"46,680.00", Information Management Services,SME,Programme
UK Statistics Authority,Office for National Statistics,09-Apr-18,Surveys,National Accounts and Economic Statistics,Kantar Public,80168,"1,710.00", Information Management Services,SME,Programme
UK Statistics Authority,Office for National Statistics,09-Apr-18,Vouchers,Public Population and Policy - Operations,NatCen Social Research,80171,"26,812.62", Statistical Services,Large,Programme
UK Statistics Authority,Office for National Statistics,09-Apr-18,ICT Outsourcing and Maintenance/Support,Digital Services and Technology,SCC,80174,"8,867.56", Information Management Services,Large,Programme
UK Statistics Authority,Office for National Statistics,09-Apr-18,IT Management and Change,Digital Services and Technology,SCC,80174,"14,938.79", Information Management Services,Large,Programme
UK Statistics Authority,Office for National Statistics,09-Apr-18,IT Purchases > 2K,Digital Services and Technology,SCC,80174,"32,956.77", Information Management Services,Large,Programme
UK Statistics Authority,Office for National Statistics,09-Apr-18,IT Purchases > 2K,Digital Services and Technology,SCC,80174,28.51, Information Management Services,Large,Programme
UK Statistics Authority,Office for National Statistics,09-Apr-18,Office Furniture,Digital Services and Technology,The Senator Group,80176,"11,467.81", Smart Working Furnishings Newport,Large,Programme
UK Statistics Authority,Office for National Statistics,09-Apr-18,Office Furniture,National Accounts and Economic Statistics,The Senator Group,80176,"124,863.11", Smart Working Furnishings Newport,Large,Programme
UK Statistics Authority,Office for National Statistics,09-Apr-18,Office Furniture,People and Business Services,The Senator Group,80176,"3,249.00", Smart Working Furnishings Newport,Large,Programme
UK Statistics Authority,Office for National Statistics,10-Apr-18,ICT Outsourcing and Maintenance/Support,Digital Services and Technology,Eduserv,80506,"27,226.87",Information Management Services,SME,Programme
UK Statistics Authority,Office for National Statistics,10-Apr-18,Capital Major Works > 25K,People and Business Services,Paramount Office Interiors Ltd,80514,"114,021.52", Major Works Titchfield,SME,Programme
UK Statistics Authority,Office for National Statistics,10-Apr-18,Major Works Over 25K,People and Business Services,Paramount Office Interiors Ltd,80514,"1,304.70", Major Works Titchfield,SME,Programme
UK Statistics Authority,Office for National Statistics,10-Apr-18,Consultancy,Digital Services and Technology,GovNow Ltd,80516,"91,200.00",Information Management Services,SME,Programme
UK Statistics Authority,Office for National Statistics,10-Apr-18,ICT Outsourcing and Maintenance/Support,Digital Services and Technology,Informatica Software Limited,80518,"32,736.01",Information Management Services,SME,Programme
UK Statistics Authority,Office for National Statistics,10-Apr-18,Stationery,Public Population and Policy - Operations,APS Group,80519,"32,854.15", Stationery,Large,Programme
UK Statistics Authority,Office for National Statistics,10-Apr-18,Training and Development,Digital Services and Technology,Teradata UK Ltd,80521,"32,825.50", Information Management Services,SME,Programme
UK Statistics Authority,Office for National Statistics,11-Apr-18,Facilities Management Contract Payments,"Finance, Audit and Business Development",Vinci Construction UK Limited,80529,"171,656.92", Facilities Management ,Large,Programme
UK Statistics Authority,Office for National Statistics,11-Apr-18,Travel and Subsistence,"Finance, Audit and Business Development",Redfern Travel,80540,"29,930.40", Travel and Accommodation Booking Service ,SME,Programme
UK Statistics Authority,Office for National Statistics,11-Apr-18,Consultancy,Economic Statistics Transformation,National Institute of Economic and Social Research,80547,"187,027.20", Information Management Services,SME,Programme
UK Statistics Authority,Office for National Statistics,12-Apr-18,ICT Software ,Digital Services and Technology,SCC,80890,"90,577.70", Information Management Services,Large,Programme
UK Statistics Authority,Office for National Statistics,12-Apr-18,ICT Outsourcing and Maintenance/Support,Digital Services and Technology,Software Box Ltd,80893,"53,853.53", Information Management Services,SME,Programme
UK Statistics Authority,Office for National Statistics,12-Apr-18,Postage,Public Population and Policy - Operations,UK Mail,80894,"26,910.78", Outgoing Post,Large,Programme
UK Statistics Authority,Office for National Statistics,12-Apr-18,Procurement Card,"Finance, Audit and Business Development",Royal Bank of Scotland,80898,"73,415.12", Multiple Procurement Card Purchases  ,Large,Programme
UK Statistics Authority,Office for National Statistics,12-Apr-18,Stationery,"Finance, Audit and Business Development",Royal Bank of Scotland,80898,"11,378.48", Multiple Procurement Card Stationery Purchases  ,Large,Programme
UK Statistics Authority,Office for National Statistics,12-Apr-18,Consultancy,"Finance, Audit and Business Development",RSM Risk Assurance Services LLP,80901,"53,526.56", Internal Audit services,SME,Programme
UK Statistics Authority,Office for National Statistics,12-Apr-18,ICT Outsourcing and Maintenance/Support,Digital Services and Technology,Amazon Web Services Inc,30000819,"41,580.88", Web Services,Large,Programme
UK Statistics Authority,Office for National Statistics,12-Apr-18,Software Pool 4 Year,Digital Services and Technology,Pluralsight,30000821,"75,012.18", Information Management Services,Large,Programme
UK Statistics Authority,Office for National Statistics,13-Apr-18,ICT Outsourcing and Maintenance/Support,Digital Services and Technology,Equiniti Limited,80915,"24,555.68", Information Management Services,Large,Programme
UK Statistics Authority,Office for National Statistics,13-Apr-18,ICT Outsourcing and Maintenance/Support,Digital Services and Technology,Equiniti Limited,80915,553.6, Information Management Services,Large,Programme
UK Statistics Authority,Office for National Statistics,13-Apr-18,ICT Outsourcing and Maintenance/Support,"Methods, Data and Research",Equiniti Limited,80915,"22,103.52", Information Management Services,Large,Programme
UK Statistics Authority,Office for National Statistics,13-Apr-18,ICT Outsourcing and Maintenance/Support,Digital Services and Technology,CenturyLink Communications UK Ltd,80926,"47,359.44", Information Management Services,Large,Programme
UK Statistics Authority,Office for National Statistics,13-Apr-18,Contractors,Digital Services and Technology,Parity Resources Limited,80927,228.96, Information Management Services,Large,Programme
UK Statistics Authority,Office for National Statistics,13-Apr-18,Contractors,Digital Services and Technology,Parity Resources Limited,80927,8.42, Information Management Services,Large,Programme
UK Statistics Authority,Office for National Statistics,13-Apr-18,Contractors,Digital Services and Technology,Parity Resources Limited,80927,"7,920.00", Information Management Services,Large,Programme
UK Statistics Authority,Office for National Statistics,13-Apr-18,Contractors,People and Business Services,Parity Resources Limited,80927,"16,917.12", Information Management Services,Large,Programme
UK Statistics Authority,Office for National Statistics,13-Apr-18,Contractors,Policy and Communication,Parity Resources Limited,80927,"14,256.00", Information Management Services,Large,Programme
UK Statistics Authority,Office for National Statistics,13-Apr-18,Short-Term Contract and Agency Staff,Policy and Communication,Parity Resources Limited,80927,107.76, Information Management Services,Large,Programme
UK Statistics Authority,Office for National Statistics,13-Apr-18,Short-Term Contract and Agency Staff,Public Population and Policy - Transformation,Parity Resources Limited,80927,"4,743.12", Information Management Services,Large,Programme
UK Statistics Authority,Office for National Statistics,13-Apr-18,Travel and Subsistence,People and Business Services,Parity Resources Limited,80927,7.2, Information Management Services,Large,Programme
UK Statistics Authority,Office for National Statistics,17-Apr-18,IT Purchases > 2K,Digital Services and Technology,Automated Intelligence Ltd,81581,"281,952.00", Software Licenses,SME,Programme
UK Statistics Authority,Office for National Statistics,17-Apr-18,Non-IT Contractual Payments,Public Population and Policy - Operations,NatCen Social Research,81582,"232,027.63", Statistical Services,Large,Programme
UK Statistics Authority,Office for National Statistics,17-Apr-18,ICT Outsourcing and Maintenance/Support,Digital Services and Technology,Esri (UK) Ltd,81584,"259,200.00", Information Management Services,SME,Programme
UK Statistics Authority,Office for National Statistics,17-Apr-18,ICT Outsourcing and Maintenance/Support,Digital Services and Technology,SCC,81585,"4,232.98", Information Management Services,Large,Programme
UK Statistics Authority,Office for National Statistics,17-Apr-18,ICT Outsourcing and Maintenance/Support,Digital Services and Technology,SCC,81585,"2,937.44", Information Management Services,Large,Programme
UK Statistics Authority,Office for National Statistics,17-Apr-18,IT Purchases > 2K,Digital Services and Technology,SCC,81585,"20,075.70", Information Management Services,Large,Programme
UK Statistics Authority,Office for National Statistics,17-Apr-18,Postage,Digital Services and Technology,SCC,81585,9.24, Information Management Services,Large,Programme
UK Statistics Authority,Office for National Statistics,17-Apr-18,Software Pool 4 Year,Digital Services and Technology,SCC,81585,"16,319.10", Information Management Services,Large,Programme
UK Statistics Authority,Office for National Statistics,17-Apr-18,Surveys,Public Population and Policy - Operations,NISRA,81591,"54,379.80", Statistical services,Large,Programme
UK Statistics Authority,Office for National Statistics,17-Apr-18,ICT Outsourcing and Maintenance/Support,Digital Services and Technology,Computacenter (UK) Limited,81593,"11,517.36", Computer Hardware,Large,Programme
UK Statistics Authority,Office for National Statistics,17-Apr-18,IT Management and Change,Digital Services and Technology,Computacenter (UK) Limited,81593,"26,114.40", Computer Hardware,Large,Programme
UK Statistics Authority,Office for National Statistics,17-Apr-18,Fast Stream Recruitment,Economic Statistics Transformation,Cabinet Office,81596,"46,584.49", TUPE Pension Payments,Large,Programme
UK Statistics Authority,Office for National Statistics,17-Apr-18,Fast Stream Recruitment,Public Policy Analysis,Cabinet Office,81596,"46,584.49", TUPE Pension Payments,Large,Programme
UK Statistics Authority,Office for National Statistics,17-Apr-18,Fast Stream Recruitment,Public Policy Analysis,Cabinet Office,81596,"21,587.50", TUPE Pension Payments,Large,Programme
UK Statistics Authority,Office for National Statistics,17-Apr-18,Fast Stream Recruitment,Public Policy Analysis,Cabinet Office,81596,"18,747.75", TUPE Pension Payments,Large,Programme
UK Statistics Authority,Office for National Statistics,17-Apr-18,Fast Stream Recruitment,Public Population and Policy - Transformation,Cabinet Office,81596,"52,833.74", TUPE Pension Payments,Large,Programme
UK Statistics Authority,Office for National Statistics,17-Apr-18,Fast Stream Recruitment,Public Population and Policy - Transformation,Cabinet Office,81596,"24,996.99", TUPE Pension Payments,Large,Programme
UK Statistics Authority,Office for National Statistics,17-Apr-18,Professional Membership Fees,People and Business Services,Cabinet Office,81596,"16,818.00", TUPE Pension Payments,Large,Programme
UK Statistics Authority,Office for National Statistics,18-Apr-18,Cognitive Testing,Public Policy Analysis,Kantar Public,81993,"165,482.40", Information Management Services,SME,Programme
UK Statistics Authority,Office for National Statistics,18-Apr-18,Telecommunications,Digital Services and Technology,Vodafone Corporate Ltd,81995,"70,645.96", Information Management Services,Large,Programme
UK Statistics Authority,Office for National Statistics,18-Apr-18,Consultancy,"Finance, Audit and Business Development",Certus Solutions Consulting Services Ltd,81996,"103,490.63", Information Management Services,SME,Programme
UK Statistics Authority,Office for National Statistics,18-Apr-18,Facilities Management Contract Payments,"Finance, Audit and Business Development",Vinci Construction UK Limited,81999,"314,334.02", Facilities Management ,Large,Programme
UK Statistics Authority,Office for National Statistics,18-Apr-18,IT Management and Change,Digital Services and Technology,Stone Computers,82005,"54,720.00", Computer Hardware,Large,Programme
UK Statistics Authority,Office for National Statistics,18-Apr-18,Non-IT Contractual Payments,Public Population and Policy - Operations,NISRA,82007,"116,137.40", Statistical Services,Large,Programme
UK Statistics Authority,Office for National Statistics,18-Apr-18,IT Contractual Services,Digital Services and Technology,Methods Digital Ltd,82011,"148,050.00", Information Management Services,Large,Programme
UK Statistics Authority,Office for National Statistics,18-Apr-18,Consultancy,Public Population and Policy - Operations,Deloitte,82014,"36,892.80", Census Information Management Services,SME,Programme
UK Statistics Authority,Office for National Statistics,18-Apr-18,Consultancy,Public Population and Policy - Operations,Deloitte,82014,"869,230.80", Census Information Management Services,SME,Programme
UK Statistics Authority,Office for National Statistics,18-Apr-18,IT Contractual Services,Digital Services and Technology,QA Ltd,82015,"46,770.00", Information Management Services,Large,Programme
UK Statistics Authority,Office for National Statistics,18-Apr-18,ICT Outsourcing and Maintenance/Support,People and Business Services,Cabinet Office,82020,"128,049.16", TUPE Pension Payments,Large,Programme
UK Statistics Authority,Office for National Statistics,18-Apr-18,IPP Reaccreditation,People and Business Services,Investors in People,82022,"30,000.00", Investors in People Questionnaire,SME,Programme
UK Statistics Authority,Office for National Statistics,18-Apr-18,Permanent UK Staff - Basic Salary,Public Policy Analysis,Care Quality Commission,82023,"29,367.33", Secondee Post,SME,Programme
UK Statistics Authority,Office for National Statistics,18-Apr-18,Permanent UK Staff - Employer's Pension Costs,Public Policy Analysis,Care Quality Commission,82023,"4,223.05", Secondee Post,SME,Programme
UK Statistics Authority,Office for National Statistics,18-Apr-18,Permanent UK Staff - Employer's Social Security Costs,Public Policy Analysis,Care Quality Commission,82023,"3,466.90", Secondee Post,SME,Programme
UK Statistics Authority,Office for National Statistics,18-Apr-18,Non-IT Contractual Payments,Public Population and Policy - Transformation,TNT UK LTD,82024,"166,720.85", Statistical Services,SME,Programme
UK Statistics Authority,Office for National Statistics,18-Apr-18,Consultancy,Economic Statistics Transformation,NIESR,30000829,"444,179.10", Statistical Services,SME,Programme
UK Statistics Authority,Office for National Statistics,19-Apr-18,Contractors,Digital Services and Technology,E Synergy Solutions,82026,"6,270.00", Information Management Services ,SME,Programme
UK Statistics Authority,Office for National Statistics,19-Apr-18,Contractors,Digital Services and Technology,E Synergy Solutions,82026,"6,210.00", Information Management Services ,SME,Programme
UK Statistics Authority,Office for National Statistics,19-Apr-18,IT Contractual Services,Digital Services and Technology,E Synergy Solutions,82026,"7,200.00", Information Management Services ,SME,Programme
UK Statistics Authority,Office for National Statistics,19-Apr-18,IT Contractual Services,Digital Services and Technology,E Synergy Solutions,82026,"20,880.00", Information Management Services ,SME,Programme
UK Statistics Authority,Office for National Statistics,19-Apr-18,Travel and Subsistence,"Finance, Audit and Business Development",Redfern Travel,82030,"56,163.71", Travel and Accommodation Booking Service ,SME,Programme
UK Statistics Authority,Office for National Statistics,20-Apr-18,Contractors,Digital Services and Technology,E Synergy Solutions,82041,"48,480.00", Information Management Services ,SME,Programme
UK Statistics Authority,Office for National Statistics,20-Apr-18,IT Contractual Services,Digital Services and Technology,E Synergy Solutions,82041,"17,130.00", Information Management Services ,SME,Programme
UK Statistics Authority,Office for National Statistics,24-Apr-18,Rent Payable,People and Business Services,James Andrew RSW Ltd,82617,"207,387.77", Drummond Gate Rent,SME,Programme
UK Statistics Authority,Office for National Statistics,25-Apr-18,IT Contractual Services,Digital Services and Technology,Mastek,83111,"22,800.00", Information Management Services,Large,Programme
UK Statistics Authority,Office for National Statistics,25-Apr-18,IT Contractual Services,Digital Services and Technology,Mastek,83111,"14,880.00", Information Management Services,Large,Programme
UK Statistics Authority,Office for National Statistics,25-Apr-18,Contractors,Digital Services and Technology,E Synergy Solutions,83114,"115,200.00", Information Management Services ,SME,Programme
UK Statistics Authority,Office for National Statistics,25-Apr-18,Contractors,Digital Services and Technology,E Synergy Solutions,83114,"16,200.00", Information Management Services ,SME,Programme
UK Statistics Authority,Office for National Statistics,25-Apr-18,IT Contractual Services,Digital Services and Technology,E Synergy Solutions,83114,"14,112.00", Information Management Services ,SME,Programme
UK Statistics Authority,Office for National Statistics,25-Apr-18,IT Contractual Services,Digital Services and Technology,E Synergy Solutions,83114,"30,060.00", Information Management Services ,SME,Programme
UK Statistics Authority,Office for National Statistics,25-Apr-18,IT Contractual Services,Digital Services and Technology,E Synergy Solutions,83114,"20,760.00", Information Management Services ,SME,Programme
UK Statistics Authority,Office for National Statistics,25-Apr-18,IT Contractual Services,Digital Services and Technology,E Synergy Solutions,83114,"78,678.00", Information Management Services ,SME,Programme
UK Statistics Authority,Office for National Statistics,25-Apr-18,IT Contractual Services,Digital Services and Technology,E Synergy Solutions,83114,"5,940.00", Information Management Services ,SME,Programme
UK Statistics Authority,Office for National Statistics,25-Apr-18,ICT Outsourcing and Maintenance/Support,Digital Services and Technology,SCC,83120,"25,841.06", Information Management Services,Large,Programme
UK Statistics Authority,Office for National Statistics,25-Apr-18,ICT Outsourcing and Maintenance/Support,Digital Services and Technology,SCC,83120,"4,635.00", Information Management Services,Large,Programme
UK Statistics Authority,Office for National Statistics,25-Apr-18,Travel and Subsistence,"Finance, Audit and Business Development",Redfern Travel,83123,"66,114.73", Travel and Accommodation Booking Service ,SME,Programme
UK Statistics Authority,Office for National Statistics,25-Apr-18,Postage,Public Population and Policy - Operations,UK Mail,83125,"35,977.78", Outgoing Post,Large,Programme
UK Statistics Authority,Office for National Statistics,25-Apr-18,Contractors,Digital Services and Technology,Medley Business Solutions Ltd,83131,619.38, Information Management Services,Large,Programme
UK Statistics Authority,Office for National Statistics,25-Apr-18,IT Contractual Services,Digital Services and Technology,Medley Business Solutions Ltd,83131,"19,958.40", Information Management Services,Large,Programme
UK Statistics Authority,Office for National Statistics,25-Apr-18,Non-IT Contractual Payments,Digital Services and Technology,Medley Business Solutions Ltd,83131,467.26, Information Management Services,Large,Programme
UK Statistics Authority,Office for National Statistics,25-Apr-18,Non-IT Contractual Payments,Digital Services and Technology,Medley Business Solutions Ltd,83131,"16,156.80", Information Management Services,Large,Programme
UK Statistics Authority,Office for National Statistics,25-Apr-18,IT Contractual Services,Digital Services and Technology,Methods Digital Ltd,83134,"51,750.00", Information Management Services,Large,Programme
UK Statistics Authority,Office for National Statistics,25-Apr-18,IT Contractual Services,Digital Services and Technology,Methods Digital Ltd,83134,"27,675.00", Information Management Services,Large,Programme
UK Statistics Authority,Office for National Statistics,25-Apr-18,IT Contractual Services,Digital Services and Technology,Methods Digital Ltd,83134,"40,140.00", Information Management Services,Large,Programme
UK Statistics Authority,Office for National Statistics,25-Apr-18,IT Contractual Services,Digital Services and Technology,Methods Digital Ltd,83134,"59,400.00", Information Management Services,Large,Programme
UK Statistics Authority,Office for National Statistics,25-Apr-18,IT Contractual Services,Digital Services and Technology,Methods Digital Ltd,83134,"29,250.00", Information Management Services,Large,Programme
UK Statistics Authority,Office for National Statistics,25-Apr-18,Contractors,Digital Services and Technology,LA International,83136,"42,253.33", Information Management Services,SME,Programme
UK Statistics Authority,Office for National Statistics,25-Apr-18,Contractors,"Methods, Data and Research",LA International,83136,"2,819.42", Information Management Services,SME,Programme
UK Statistics Authority,Office for National Statistics,25-Apr-18,IT Contractual Services,Digital Services and Technology,LA International,83136,"14,801.72", Information Management Services,SME,Programme
UK Statistics Authority,Office for National Statistics,25-Apr-18,Accommodation and Building Management - Miscellaneous Minor Works,National Accounts and Economic Statistics,Paramount Office Interiors Ltd,83138,"2,534.40", Major Works Titchfield,SME,Programme
UK Statistics Authority,Office for National Statistics,25-Apr-18,Major Works Over 25K,People and Business Services,Paramount Office Interiors Ltd,83138,"56,108.40", Major Works Titchfield,SME,Programme
UK Statistics Authority,Office for National Statistics,25-Apr-18,Contractors,Digital Services and Technology,Parity Resources Limited,83140,"19,206.36", Information Management Services,Large,Programme
UK Statistics Authority,Office for National Statistics,25-Apr-18,Contractors,Policy and Communication,Parity Resources Limited,83140,"17,814.24", Information Management Services,Large,Programme
UK Statistics Authority,Office for National Statistics,25-Apr-18,Short-Term Contract and Agency Staff,People and Business Services,Parity Resources Limited,83140,80.4, Information Management Services,Large,Programme
UK Statistics Authority,Office for National Statistics,25-Apr-18,ICT Software ,Digital Services and Technology,KCOM Group PLC,83147,"94,798.80", Information Management Services,SME,Programme
UK Statistics Authority,Office for National Statistics,25-Apr-18,IT Contractual Services,Digital Services and Technology,Mosaic Island,83151,"26,964.00", Information Management Services,Large,Programme
UK Statistics Authority,Office for National Statistics,25-Apr-18,Non-IT Contractual Payments,Public Population and Policy - Operations,Gowling WLG (UK) LLP,83152,"31,176.60", Census Informtion Management Services,Large,Programme
UK Statistics Authority,Office for National Statistics,25-Apr-18,IT Contractual Services,Digital Services and Technology,Cloudwick Technologies UK,83154,"45,497.06", Cloud Services,SME,Programme
UK Statistics Authority,Office for National Statistics,26-Apr-18,Telecommunications,Digital Services and Technology,Vodafone Corporate Ltd,83163,"37,704.70", Information Management Services,Large,Programme
UK Statistics Authority,Office for National Statistics,26-Apr-18,Contractors,Digital Services and Technology,E Synergy Solutions,83165,"43,074.00", Information Management Services ,SME,Programme
UK Statistics Authority,Office for National Statistics,26-Apr-18,IT Contractual Services,Digital Services and Technology,E Synergy Solutions,83165,"42,516.00", Information Management Services ,SME,Programme
UK Statistics Authority,Office for National Statistics,26-Apr-18,Incentive Payments,Public Population and Policy - Operations,Park Retail Ltd,83166,"54,129.39", Social Surveys Incentive Vouchers,Large,Programme
UK Statistics Authority,Office for National Statistics,26-Apr-18,Incentive Payments,Public Population and Policy - Operations,Park Retail Ltd,83166,"4,251.69", Social Surveys Incentive Vouchers,Large,Programme
UK Statistics Authority,Office for National Statistics,26-Apr-18,Incentive Payments,Public Population and Policy - Operations,Park Retail Ltd,83166,"3,795.06", Social Surveys Incentive Vouchers,Large,Programme
UK Statistics Authority,Office for National Statistics,26-Apr-18,Incentive Payments,Public Population and Policy - Operations,Park Retail Ltd,83166,"10,495.06", Social Surveys Incentive Vouchers,Large,Programme
UK Statistics Authority,Office for National Statistics,26-Apr-18,Vouchers,Public Population and Policy - Operations,Park Retail Ltd,83166,"17,875.81", Social Surveys Incentive Vouchers,Large,Programme
UK Statistics Authority,Office for National Statistics,26-Apr-18,Telecommunications,Digital Services and Technology,CenturyLink Communications UK Ltd,83177,"19,874.40", Telecomunications Services,Large,Programme
UK Statistics Authority,Office for National Statistics,26-Apr-18,Telecommunications,Public Population and Policy - Operations,CenturyLink Communications UK Ltd,83177,"16,413.01", Telecomunications Services,Large,Programme
UK Statistics Authority,Office for National Statistics,26-Apr-18,ICT Outsourcing and Maintenance/Support,Digital Services and Technology,QA Ltd,83178,"37,200.00", Information Management Services,Large,Programme
UK Statistics Authority,Office for National Statistics,26-Apr-18,IT Contractual Services,Digital Services and Technology,QA Ltd,83178,"81,300.00", Information Management Services,Large,Programme
UK Statistics Authority,Office for National Statistics,26-Apr-18,Contractors,Digital Services and Technology,Parity Resources Limited,83180,"14,097.60", Information Management Services,Large,Programme
UK Statistics Authority,Office for National Statistics,26-Apr-18,Contractors,Digital Services and Technology,Parity Resources Limited,83180,"46,169.64", Information Management Services,Large,Programme
UK Statistics Authority,Office for National Statistics,26-Apr-18,Contractors,Digital Services and Technology,Parity Resources Limited,83180,"9,804.24", Information Management Services,Large,Programme
UK Statistics Authority,Office for National Statistics,26-Apr-18,Contractors,Economic Statistics Transformation,Parity Resources Limited,83180,"24,598.08", Information Management Services,Large,Programme
UK Statistics Authority,Office for National Statistics,26-Apr-18,Contractors,"Finance, Audit and Business Development",Parity Resources Limited,83180,"14,738.40", Information Management Services,Large,Programme
UK Statistics Authority,Office for National Statistics,26-Apr-18,Contractors,Policy and Communication,Parity Resources Limited,83180,"12,495.60", Information Management Services,Large,Programme
UK Statistics Authority,Office for National Statistics,26-Apr-18,Contractors,Public Population and Policy - Transformation,Parity Resources Limited,83180,"25,215.48", Information Management Services,Large,Programme
UK Statistics Authority,Office for National Statistics,26-Apr-18,Contractors,Public Population and Policy - Transformation,Parity Resources Limited,83180,"30,117.60", Information Management Services,Large,Programme
UK Statistics Authority,Office for National Statistics,26-Apr-18,IT Contractual Services,Digital Services and Technology,Parity Resources Limited,83180,"11,438.28", Information Management Services,Large,Programme
UK Statistics Authority,Office for National Statistics,26-Apr-18,Short-Term Contract and Agency Staff,Public Population and Policy - Transformation,Parity Resources Limited,83180,"14,610.24", Information Management Services,Large,Programme
UK Statistics Authority,Office for National Statistics,26-Apr-18,Short-Term Contract and Agency Staff,Public Population and Policy - Transformation,Parity Resources Limited,83180,"5,398.11", Information Management Services,Large,Programme
UK Statistics Authority,Office for National Statistics,26-Apr-18,Consultancy,"Finance, Audit and Business Development",Certeco Ltd,83185,"199,920.00", Information Management Services,Large,Programme
UK Statistics Authority,Office for National Statistics,26-Apr-18,Contractors,"Finance, Audit and Business Development",Certeco Ltd,83185,"116,460.00", Information Management Services,Large,Programme
UK Statistics Authority,Office for National Statistics,26-Apr-18,IT Contractual Services,Digital Services and Technology,Armakuni Ltd,83186,"65,460.00", Information Management Services,SME,Programme
UK Statistics Authority,Office for National Statistics,30-Apr-18,IT Contractual Services,Digital Services and Technology,QA Ltd,30000848,"133,980.00", Information Management Services,Large,Programme
